bitfinex-derivatives/quotes_BNBF0:USTF0_20250329
["timestamp","ask_amount","ask_price","bid_price","bid_amount"]
[1743215107970,0.93150793,617.13,616.75,1.298]
[1743215108368,0.32357223,618.1,616.75,1.298]
[1743215108369,0.93150793,617.12,616.75,1.298]
[1743215108975,0.93150793,617.11,616.75,1.298]
[1743215109271,0.93150793,617.1,616.75,1.298]
[1743215109971,0.93150793,617.09,616.75,1.298]
[1743215110668,0.93150793,617.08,616.75,1.298]
[1743215111470,0.93150793,617.07,616.75,1.298]
[1743215112067,0.93150793,617.06,616.75,1.298]
[1743215112473,0.28208973,617.26,616.75,1.298]
[1743215112474,0.93150793,617.05,616.75,1.298]
[1743215113269,0.68125745,617.14,616.75,1.298]
[1743215113471,0.28208973,617.26,616.75,1.298]
[1743215113667,0.93243561,617.13,616.75,1.298]
[1743215114469,0.93243561,617.12,616.75,1.298]
[1743215115273,0.93243561,617.11,616.75,1.298]
[1743215115673,0.93243561,617.1,616.75,1.298]
[1743215116070,0.93243561,617.09,616.75,1.298]
[1743215116673,0.68205564,618.08,616.75,1.298]
[1743215116878,0.32359317,618.06,616.75,1.298]
[1743215117072,0.68205564,618.05,616.75,1.298]
[1743215117287,0.97988044,618.04,616.75,1.298]
[1743215117577,0.97988044,618.03,616.75,1.298]
[1743215117877,0.97988044,618.02,616.75,1.298]
[1743215118080,1.30349979,618.01,616.75,1.298]
[1743215118375,2.18554043,618.0,616.75,1.298]
[1743215118577,1.88771563,617.99,616.75,1.298]
[1743215118877,2.21135069,617.98,616.75,1.298]
[1743215119078,2.21135593,617.97,616.75,1.298]
[1743215119270,2.21136117,617.96,616.75,1.298]
[1743215119470,2.21136641,617.95,616.75,1.298]
[1743215119669,2.21137164,617.94,616.75,1.298]
[1743215119874,2.21137688,617.93,616.75,1.298]
[1743215120074,2.21138212,617.92,616.76,1.463]
[1743215120271,2.21138736,617.91,616.76,1.463]
[1743215120469,1.88771563,617.9,616.76,1.463]
[1743215120777,1.88771563,617.89,616.76,1.463]
[1743215120977,1.88869204,617.88,616.76,1.463]
[1743215121177,1.88869204,617.87,616.76,1.463]
[1743215121377,1.88869204,617.86,616.76,1.463]
[1743215121578,1.21532713,617.88,616.76,1.463]
[1743215121579,2.8220163,617.85,616.76,1.463]
[1743215121877,3.1457247,617.84,616.76,1.463]
[1743215122078,2.8220163,617.83,616.76,1.463]
[1743215122272,1.88869204,617.82,616.76,1.463]
[1743215122477,1.88869204,617.81,616.76,1.463]
[1743215122674,1.88869204,617.8,616.76,1.463]
[1743215122978,1.88869204,617.79,616.76,1.463]
[1743215123177,1.88869204,617.78,616.76,1.463]
[1743215123377,1.88869204,617.77,616.76,1.463]
[1743215123674,2.8220163,617.76,616.76,1.463]
[1743215123878,1.88869204,617.75,616.76,1.463]
[1743215124078,1.88869204,617.74,616.76,1.463]
[1743215124279,2.8220163,617.73,616.77,1.148]
[1743215124479,1.88869204,617.72,616.77,1.148]
[1743215124675,1.88869204,617.71,616.77,1.148]
[1743215124876,1.88869204,617.7,616.77,1.148]
[1743215125076,2.8220163,617.69,616.77,1.148]
[1743215125276,1.88869204,617.68,616.77,1.148]
[1743215125578,2.8220163,617.67,616.77,1.148]
[1743215125779,1.88869204,617.66,616.77,1.148]
[1743215125979,1.88869204,617.65,616.77,1.148]
[1743215126173,1.88869204,617.64,616.77,1.148]
[1743215126375,1.88869204,617.63,616.77,1.148]
[1743215126575,1.88869204,617.62,616.77,1.148]
[1743215126778,1.88869204,617.61,616.77,1.148]
[1743215126980,1.88869204,617.6,616.77,1.148]
[1743215127179,1.88869204,617.59,616.77,2.757]
[1743215127476,2.8220163,617.58,616.77,2.757]
[1743215127678,1.88869204,617.57,616.77,2.757]
[1743215127877,1.88869204,617.56,616.77,2.757]
[1743215128082,2.8220163,617.55,616.77,2.757]
[1743215128281,1.88869204,617.54,616.77,2.757]
[1743215128477,2.8220163,617.53,616.77,2.757]
[1743215128676,1.89044588,617.52,616.77,2.757]
[1743215128879,1.89044588,617.51,616.77,2.757]
[1743215129077,1.89044588,617.5,616.77,2.757]
[1743215129281,1.89044588,617.49,616.77,2.757]
[1743215129479,1.89044588,617.48,616.77,2.757]
[1743215129679,1.89044588,617.47,616.77,2.757]
[1743215129883,1.89044588,617.46,616.77,2.757]
[1743215130080,1.89044588,617.45,616.77,2.757]
[1743215130279,1.89044588,617.44,616.77,2.757]
[1743215130485,1.89044588,617.43,616.77,2.757]
[1743215130680,1.89430681,617.42,616.77,2.757]
[1743215130882,1.89430681,617.41,616.77,2.757]
[1743215131080,1.89430681,617.4,616.77,2.757]
[1743215131381,1.89430681,617.39,616.77,2.757]
[1743215131579,1.89430681,617.38,616.77,2.757]
[1743215131784,2.82763107,617.37,616.77,2.757]
[1743215131981,1.89430681,617.36,616.77,2.757]
[1743215132186,1.89430681,617.35,616.77,2.757]
[1743215132386,1.89430681,617.34,616.77,2.757]
[1743215132587,1.89430681,617.33,616.77,2.757]
[1743215132787,1.89430681,617.32,616.77,2.757]
[1743215132980,1.89430681,617.31,616.77,2.757]
[1743215133182,1.89430681,617.3,616.77,2.757]
[1743215133385,2.82763107,617.29,616.77,2.757]
[1743215133582,1.89430681,617.28,616.77,2.757]
[1743215133789,1.89430681,617.27,616.77,2.757]
[1743215133982,1.89430681,617.26,616.77,2.757]
[1743215134183,1.89430681,617.25,616.77,2.757]
[1743215134484,0.68435173,617.24,616.77,2.757]
[1743215134788,1.89522182,617.23,616.77,2.757]
[1743215134991,2.82854608,617.22,616.77,2.757]
[1743215135190,1.89522182,617.21,616.77,2.757]
[1743215135391,1.89625162,617.2,616.77,2.757]
[1743215135586,0.3237084,617.84,616.77,2.757]
[1743215135587,2.82957588,617.19,616.77,2.757]
[1743215135784,1.89625162,617.18,616.77,2.757]
[1743215135991,1.89625162,617.17,616.77,2.757]
[1743215136292,2.82957588,617.16,616.77,2.757]
[1743215136485,1.89632834,617.15,616.77,2.757]
[1743215136688,1.89632834,617.14,616.77,2.757]
[1743215136889,1.89632834,617.13,616.77,2.757]
[1743215137089,1.89632834,617.12,616.77,2.757]
[1743215137286,1.89632834,617.11,616.77,2.757]
[1743215137487,1.89632834,617.1,616.77,2.757]
[1743215137689,1.89632834,617.09,616.77,2.757]
[1743215137892,1.89632834,617.08,616.77,2.757]
[1743215138091,1.89632834,617.07,616.77,2.757]
[1743215138292,1.89632834,617.06,616.77,2.757]
[1743215138493,1.89601055,617.05,616.77,2.757]
[1743215138791,1.89601055,617.04,616.77,2.757]
[1743215138993,1.89601055,617.03,616.77,2.757]
[1743215139194,1.89601055,617.02,616.77,2.757]
[1743215139393,1.89601055,617.01,616.77,2.757]
[1743215139693,1.89601055,617.0,616.77,2.757]
[1743215139894,2.82933481,616.99,616.77,2.757]
[1743215140092,1.89601055,616.98,616.77,2.757]
[1743215140294,1.89601055,616.97,616.77,2.757]
[1743215140498,1.89601055,616.96,616.77,2.757]
[1743215140705,1.89601055,616.95,616.77,2.757]
[1743215140899,1.89601055,616.94,616.77,2.757]
[1743215141104,1.89601055,616.93,616.77,2.757]
[1743215141300,1.89601055,616.92,616.77,2.757]
[1743215141600,2.82933481,616.91,616.77,2.757]
[1743215141798,1.89601055,616.9,616.77,2.757]
[1743215141995,2.82933481,616.89,616.77,2.757]
[1743215142199,1.89601055,616.88,616.77,2.757]
[1743215142398,1.89601055,616.87,616.77,2.74220171]
[1743215142599,1.89601055,616.86,616.77,1.609]
[1743215142799,1.89601055,616.85,616.77,1.609]
[1743215142996,1.89601055,616.84,616.77,1.609]
[1743215143200,1.89601055,616.83,616.77,1.609]
[1743215143501,2.82875068,616.82,616.77,1.609]
[1743215143701,1.21087009,616.81,616.77,1.609]
[1743215143902,1.21087009,616.8,616.77,1.609]
[1743215144103,2.14419435,616.79,616.77,1.609]
[1743215144301,0.93332426,616.79,616.77,1.609]
[1743215144699,0.93332426,616.78,616.77,1.609]
[1743215145096,0.93332426,616.78,616.76,1.463]
[1743215145496,0.93332426,616.77,616.76,1.463]
[1743215146400,2.1418846,616.77,616.76,1.463]
[1743215147200,2.1418846,616.77,616.69,1.232]
[1743215147398,1.20856034,616.76,616.69,1.232]
[1743215147603,2.1418846,616.75,616.69,1.232]
[1743215147905,2.1418846,616.74,616.69,1.232]
[1743215148107,1.20856034,616.73,616.69,1.232]
[1743215148408,0.3237084,617.84,616.69,1.232]
[1743215148409,2.1418846,616.72,616.69,1.232]
[1743215148610,1.20856034,616.71,616.69,1.232]
[1743215148807,2.1418846,616.7,616.69,1.232]
[1743215151214,0.93332426,616.7,616.69,1.232]
[1743215154513,2.13766878,616.7,616.69,1.232]
[1743215154908,2.81943911,616.7,616.69,1.232]
[1743215155111,2.13766878,616.7,616.69,1.232]
[1743215156012,2.13722937,616.7,616.69,1.232]
[1743215157916,2.13641157,616.7,616.69,1.232]
[1743215158716,2.13607333,616.7,616.69,1.232]
[1743215161218,2.13587797,616.7,616.69,1.232]
[1743215163420,2.41815304,616.7,616.69,1.232]
[1743215165120,2.13587797,616.7,616.69,1.232]
[1743215165621,2.41815304,616.7,616.69,1.232]
[1743215166019,2.41815304,616.7,616.31,0.969]
[1743215166217,1.20255371,616.69,616.31,0.969]
[1743215166424,1.88304954,616.68,616.27,2.107]
[1743215166622,1.88304954,616.67,616.27,0.996]
[1743215166823,1.20255371,616.66,616.27,0.996]
[1743215167118,0.93332426,616.68,616.27,0.996]
[1743215167119,1.20255371,616.65,616.27,0.996]
[1743215167325,1.20255371,616.64,616.27,0.996]
[1743215167624,2.13587797,616.63,616.27,0.996]
[1743215167823,1.20255371,616.62,616.27,0.996]
[1743215168018,0.93332426,616.63,616.27,0.996]
[1743215168217,1.20096065,616.62,616.27,0.996]
[1743215168425,0.28235523,616.61,616.27,0.996]
[1743215168618,1.21567949,616.61,616.27,0.996]
[1743215169726,0.93332426,616.6,616.27,0.996]
[1743215170125,0.93332426,616.59,616.27,0.996]
[1743215171325,0.93332426,616.58,616.27,0.996]
[1743215171628,0.93332426,616.57,616.27,0.996]
[1743215172227,0.93332426,616.56,616.27,0.996]
[1743215173323,0.28235867,616.6,616.27,0.996]
[1743215173724,1.19964115,616.59,616.27,0.996]
[1743215173924,0.28235867,616.6,616.27,0.996]
[1743215174125,0.9293172,616.58,616.27,0.996]
[1743215174828,2.12875046,616.57,616.27,0.996]
[1743215175021,1.19943326,616.56,616.27,0.996]
[1743215175227,1.19943326,616.55,616.27,0.996]
[1743215175528,0.9293172,616.55,616.27,0.996]
[1743215175927,0.9293172,616.54,616.27,0.996]
[1743215176524,0.9293172,616.53,616.27,0.996]
[1743215177132,0.9293172,616.52,616.27,0.996]
[1743215177735,0.9293172,616.51,616.27,0.996]
[1743215178534,0.9293172,616.5,616.27,0.996]
[1743215179132,0.9293172,616.49,616.27,0.996]
[1743215179734,1.19862014,616.54,616.27,0.996]
[1743215179930,0.282377,616.56,616.27,0.996]
[1743215180134,1.87789398,617.29,616.27,0.996]
[1743215180335,0.92855256,616.55,616.27,0.996]
[1743215180733,1.87723142,617.26,616.27,0.996]
[1743215180940,2.49937395,617.25,616.27,0.996]
[1743215181137,2.4993792,617.24,616.27,0.996]
[1743215181338,2.49938445,617.23,616.27,0.996]
[1743215181535,2.49938969,617.22,616.27,0.996]
[1743215181732,2.17535613,617.21,616.27,0.996]
[1743215181934,1.87723142,617.2,616.27,0.996]
[1743215182137,1.87723142,617.19,616.27,2.249]
[1743215182334,1.87723142,617.18,616.27,2.249]
[1743215182536,1.87723142,617.17,616.27,2.249]
[1743215182736,1.87723142,617.16,616.27,2.249]
[1743215182940,1.87723142,617.15,616.27,2.249]
[1743215183240,1.87723142,617.14,616.27,2.249]
[1743215183440,1.87723142,617.13,616.27,2.249]
[1743215183637,1.87723142,617.12,616.27,2.249]
[1743215183833,1.87723142,617.11,616.27,2.249]
[1743215184039,1.87723142,617.1,616.27,2.249]
[1743215184234,1.87723142,617.09,616.27,2.249]
[1743215184439,1.87723142,617.08,616.27,2.249]
[1743215184638,1.87723142,617.07,616.27,2.249]
[1743215184935,1.87723142,617.06,616.27,2.249]
[1743215185142,1.87723142,617.05,616.27,2.249]
[1743215185334,1.87723142,617.04,616.27,2.249]
[1743215185539,1.87723142,617.03,616.27,2.249]
[1743215185735,1.87723142,617.02,616.27,2.249]
[1743215185941,1.87723142,617.01,616.27,2.249]
[1743215186143,1.87723142,617.0,616.27,2.249]
[1743215186339,1.87723142,616.99,616.27,2.249]
[1743215186536,1.87926109,616.98,616.27,2.249]
[1743215186843,1.87926109,616.97,616.27,2.249]
[1743215187036,1.87926109,616.96,616.27,2.249]
[1743215187236,1.87926109,616.95,616.27,2.249]
[1743215187437,1.87926109,616.94,616.27,2.249]
[1743215187637,1.87926109,616.93,616.27,2.249]
[1743215187843,1.87926109,616.92,616.27,2.249]
[1743215188038,1.87926109,616.91,616.27,2.249]
[1743215188243,1.87926109,616.9,616.27,2.249]
[1743215188444,1.87926109,616.89,616.27,2.249]
[1743215188644,1.87926109,616.88,616.27,2.249]
[1743215188845,1.87926109,616.87,616.27,2.249]
[1743215189042,1.87926109,616.86,616.27,2.249]
[1743215189246,1.87926109,616.85,616.27,2.249]
[1743215189445,1.87926109,616.84,616.27,2.249]
[1743215189643,1.87926109,616.83,616.27,2.249]
[1743215189847,1.87926109,616.82,616.27,2.249]
[1743215190047,1.87926109,616.81,616.27,2.249]
[1743215190244,1.87926109,616.8,616.27,2.249]
[1743215190447,1.87926109,616.79,616.27,2.249]
[1743215190649,1.87926109,616.78,616.27,2.249]
[1743215190849,1.87926109,616.77,616.27,2.249]
[1743215191049,1.87926109,616.76,616.27,2.249]
[1743215191246,1.87926109,616.75,616.27,2.249]
[1743215191451,1.87926109,616.74,616.27,2.249]
[1743215191650,2.1295595,616.73,616.27,2.249]
[1743215191951,1.20064981,616.72,616.27,2.249]
[1743215192152,1.20064981,616.71,616.27,2.249]
[1743215192351,1.20064981,616.7,616.27,2.249]
[1743215192551,1.20064981,616.69,616.27,2.249]
[1743215192851,1.20064981,616.68,616.27,1.253]
[1743215193044,1.20064981,616.67,616.27,1.253]
[1743215193251,0.92890969,616.68,616.27,1.253]
[1743215193450,1.20373742,616.67,616.18,3.347]
[1743215193647,0.92890969,616.68,616.18,3.347]
[1743215193852,0.92890969,616.66,616.18,3.347]
[1743215194247,1.20425195,616.65,616.18,3.347]
[1743215194453,1.2043375,616.64,616.18,3.347]
[1743215194655,0.92890969,616.66,616.18,3.347]
[1743215194849,0.92890969,616.63,616.18,3.347]
[1743215195052,0.92890969,616.62,616.18,3.347]
[1743215195750,0.92890969,616.61,616.18,3.347]
[1743215196355,0.92890969,616.6,616.18,3.347]
[1743215196556,0.92890969,616.6,616.18,2.17]
[1743215196952,0.92890969,616.59,616.18,1.221]
[1743215197555,0.92890969,616.58,616.18,1.221]
[1743215198062,0.92890969,616.57,616.18,1.221]
[1743215198862,0.92890969,616.56,616.18,1.221]
[1743215199456,0.92890969,616.55,616.18,1.221]
[1743215200260,0.68331393,616.65,616.18,1.221]
[1743215200460,1.89063253,616.64,616.18,1.221]
[1743215200760,2.82591456,616.63,616.18,2.283]
[1743215201062,1.2073186,616.62,616.18,2.283]
[1743215201260,1.2073186,616.61,616.18,2.283]
[1743215201454,1.2073186,616.6,616.18,2.283]
[1743215201658,1.2073186,616.59,616.18,2.283]
[1743215201859,1.2073186,616.58,616.18,2.283]
[1743215202059,0.93528203,616.61,616.18,2.283]
[1743215202261,0.93528203,616.57,616.18,2.283]
[1743215203265,0.93528203,616.56,616.18,2.283]
[1743215203964,0.93528203,616.55,616.18,2.283]
[1743215204660,0.93528203,616.54,616.18,2.283]
[1743215205163,0.93528203,616.53,616.18,2.283]
[1743215205661,0.93528203,616.52,616.18,2.283]
[1743215206158,0.28234263,616.74,616.18,2.283]
[1743215206364,2.83002128,616.73,616.18,2.283]
[1743215206664,1.89345339,616.72,616.18,3.498]
[1743215206865,2.83002128,616.71,616.18,3.498]
[1743215207165,1.89345339,616.7,616.18,3.498]
[1743215207363,1.89345339,616.69,616.18,3.498]
[1743215207559,1.89345339,616.68,616.18,3.498]
[1743215207759,1.89345339,616.67,616.18,3.498]
[1743215207964,1.89345339,616.66,616.18,3.498]
[1743215208260,2.83002128,616.65,616.18,3.498]
[1743215208461,1.20904213,616.64,616.18,3.498]
[1743215208666,1.20904213,616.63,616.18,3.498]
[1743215208862,1.20904213,616.62,616.18,3.498]
[1743215209067,0.93656789,616.64,616.18,3.498]
[1743215209264,1.21010768,616.63,616.18,3.498]
[1743215209464,0.93656789,616.62,616.18,3.498]
[1743215209966,0.93656789,616.61,616.18,3.498]
[1743215210362,0.93656789,616.6,616.18,3.498]
[1743215210563,0.93656789,616.6,616.18,2.277]
[1743215210969,0.93656789,616.59,616.18,2.277]
[1743215211362,0.93656789,616.58,616.18,2.277]
[1743215211666,0.93656789,616.57,616.18,2.277]
[1743215211863,0.93656789,616.57,616.18,1.215]
[1743215212066,0.93656789,616.56,616.18,1.215]
[1743215212670,0.28232316,616.8,616.18,1.215]
[1743215212970,1.89521013,616.79,616.18,1.215]
[1743215213163,1.89521013,616.78,616.18,2.42]
[1743215213367,0.93741506,616.79,616.18,2.42]
[1743215213368,1.89521013,616.77,616.18,2.42]
[1743215213563,2.83262519,616.76,616.18,2.42]
[1743215213765,1.89519126,616.75,616.18,2.42]
[1743215213970,1.89519126,616.74,616.18,2.42]
[1743215214167,2.83260632,616.73,616.18,2.42]
[1743215214365,1.89519126,616.72,616.18,2.42]
[1743215214566,1.89519126,616.71,616.18,2.42]
[1743215214770,1.89519126,616.7,616.18,2.42]
[1743215214970,1.89519126,616.69,616.18,2.42]
[1743215215170,1.89519126,616.68,616.18,2.42]
[1743215215370,2.83260632,616.67,616.18,4.239]
[1743215215569,1.89519126,616.66,616.18,4.239]
[1743215215769,1.89519126,616.65,616.18,4.239]
[1743215215971,2.1475753,616.64,616.18,4.239]
[1743215216266,0.93741506,616.64,616.18,4.239]
[1743215216465,0.93741506,616.63,616.18,4.239]
[1743215217472,0.93741506,616.62,616.18,4.239]
[1743215218173,0.93741506,616.61,616.18,4.239]
[1743215219268,0.32403356,617.22,616.18,4.239]
[1743215219573,0.28231171,616.84,616.18,4.239]
[1743215219766,1.89439616,616.83,616.18,4.239]
[1743215219968,2.83140041,616.82,616.18,4.239]
[1743215220167,1.89439616,616.81,616.18,4.239]
[1743215220374,2.83140041,616.8,616.18,4.239]
[1743215220574,1.89439616,616.79,616.18,4.239]
[1743215220775,2.83140041,616.78,616.18,4.239]
[1743215220976,1.89439616,616.77,616.18,4.239]
[1743215221177,1.89439616,616.76,616.18,5.561]
[1743215221475,0.93700425,616.78,616.18,5.561]
[1743215221476,1.89439616,616.75,616.18,5.561]
[1743215221775,1.89439616,616.74,616.18,5.561]
[1743215221976,1.20968172,616.73,616.18,5.561]
[1743215222276,1.20968172,616.72,616.18,5.561]
[1743215222472,2.14668597,616.71,616.18,5.561]
[1743215222777,1.20968172,616.7,616.18,5.561]
[1743215222969,0.93700425,616.7,616.18,5.561]
[1743215223371,0.93700425,616.69,616.18,5.561]
[1743215223776,0.93700425,616.68,616.18,5.561]
[1743215224673,0.93700425,616.67,616.18,5.561]
[1743215225078,0.93700425,616.66,616.18,5.561]
[1743215225578,0.93700425,616.65,616.18,5.561]
[1743215226378,0.28229568,616.88,616.18,5.561]
[1743215226589,1.89267026,616.87,616.18,5.561]
[1743215226881,2.82882006,616.86,616.18,5.561]
[1743215227078,1.89267026,616.85,616.18,5.561]
[1743215227283,2.82882006,616.84,616.18,5.561]
[1743215227479,1.89267026,616.83,616.18,6.985]
[1743215227685,2.82882006,616.82,616.18,6.985]
[1743215227886,1.89267026,616.81,616.18,6.985]
[1743215228085,1.89267026,616.8,616.18,6.985]
[1743215228286,1.89267026,616.79,616.18,6.985]
[1743215228481,1.89267026,616.78,616.18,6.985]
[1743215228680,1.89267026,616.77,616.18,6.985]
[1743215228879,1.89267026,616.76,616.18,6.985]
[1743215229083,0.68405676,616.75,616.18,6.985]
[1743215229279,1.8925297,616.74,616.18,6.985]
[1743215229479,1.8925297,616.73,616.18,6.985]
[1743215229682,1.8925297,616.72,616.18,6.985]
[1743215229883,1.8925297,616.71,616.18,6.985]
[1743215230079,1.20847294,616.7,616.18,6.985]
[1743215230384,2.14462274,616.69,616.18,6.985]
[1743215230586,1.20847294,616.68,616.18,6.985]
[1743215230779,2.14462274,616.67,616.18,6.985]
[1743215230982,0.9361498,616.67,616.18,6.985]
[1743215231884,0.9361498,616.66,616.18,6.985]
[1743215232385,0.9361498,616.65,616.18,6.985]
[1743215232985,0.9361498,616.64,616.18,6.985]
[1743215233181,0.9361498,616.63,616.18,6.985]
[1743215233587,0.9361498,616.62,616.18,6.985]
[1743215234182,0.28230942,616.82,616.18,6.985]
[1743215234382,1.89257327,616.81,616.18,6.985]
[1743215234583,1.89257327,616.8,616.18,6.985]
[1743215234783,1.89257327,616.79,616.18,6.985]
[1743215234986,1.89257327,616.78,616.18,6.985]
[1743215235185,1.89257327,616.77,616.18,6.985]
[1743215235388,0.93617064,616.78,616.18,6.985]
[1743215235389,1.89257327,616.76,616.18,6.985]
[1743215235589,1.89257327,616.75,616.18,6.985]
[1743215235790,1.89257327,616.74,616.18,6.985]
[1743215235988,1.89257327,616.73,616.18,6.985]
[1743215236188,1.89257327,616.72,616.18,6.985]
[1743215236385,1.89257327,616.71,616.18,6.985]
[1743215236590,1.89257327,616.7,616.18,6.985]
[1743215236790,1.89257327,616.69,616.18,6.985]
[1743215236990,1.89257327,616.68,616.18,6.985]
[1743215237292,1.89257327,616.67,616.18,6.985]
[1743215237593,1.89257327,616.66,616.18,6.985]
[1743215237793,2.82874391,616.65,616.18,6.985]
[1743215237996,1.89257327,616.64,616.18,6.985]
[1743215238289,1.89287364,616.63,616.18,6.985]
[1743215238491,1.89287364,616.62,616.18,6.985]
[1743215238795,1.89287364,616.61,616.18,6.985]
[1743215238996,2.82904428,616.6,616.18,6.985]
[1743215239195,1.20848959,616.59,616.18,6.985]
[1743215239388,1.20848959,616.58,616.18,6.985]
[1743215239697,2.829372,616.57,616.18,5.166]
[1743215239890,1.89320136,616.56,616.18,5.166]
[1743215240093,2.829372,616.55,616.18,5.166]
[1743215240289,1.20848959,616.54,616.18,5.166]
[1743215240490,1.20848959,616.53,616.18,5.166]
[1743215240695,1.20848959,616.52,616.18,5.166]
[1743215240898,1.20848959,616.51,616.18,5.166]
[1743215241094,0.93617064,616.52,616.18,5.166]
[1743215241095,1.20848959,616.5,616.18,5.166]
[1743215241293,0.93617064,616.5,616.18,5.166]
[1743215241891,0.93617064,616.49,616.18,5.166]
[1743215242196,0.93617064,616.49,616.18,3.961]
[1743215242596,0.93617064,616.48,616.18,3.961]
[1743215243296,0.93617064,616.47,616.18,3.961]
[1743215243791,0.93617064,616.46,616.18,3.961]
[1743215244291,0.28236096,616.69,616.18,2.639]
[1743215244292,0.93617064,616.45,616.18,2.639]
[1743215244893,0.28236096,616.69,616.18,2.639]
[1743215245095,1.89515124,616.68,616.18,2.639]
[1743215245292,2.83258126,616.67,616.18,4.015]
[1743215245593,2.83258126,616.66,616.18,4.015]
[1743215245797,1.89515124,616.65,616.18,4.015]
[1743215245995,1.89515124,616.64,616.18,4.015]
[1743215246194,1.89515124,616.63,616.18,4.015]
[1743215246395,1.89515124,616.62,616.18,4.015]
[1743215246596,1.89515124,616.61,616.18,4.015]
[1743215246795,0.32403356,617.22,616.18,4.015]
[1743215246796,2.83258126,616.6,616.18,4.015]
[1743215246998,1.89515124,616.59,616.18,4.015]
[1743215247198,1.89515124,616.58,616.18,4.015]
[1743215247395,2.83258126,616.57,616.18,4.015]
[1743215247598,1.89515124,616.56,616.18,4.015]
[1743215247800,1.89515124,616.55,616.18,4.015]
[1743215248001,1.89515124,616.54,616.18,4.015]
[1743215248197,1.89515124,616.53,616.18,4.015]
[1743215248398,1.21011919,616.52,616.18,4.015]
[1743215248703,1.21011919,616.51,616.18,4.015]
[1743215248897,1.21011919,616.5,616.18,4.015]
[1743215249099,0.93743002,616.51,616.18,4.015]
[1743215249400,2.14797533,616.5,616.18,4.015]
[1743215249601,0.93743002,616.5,616.18,2.591]
[1743215249801,0.93743002,616.49,616.18,2.591]
[1743215250310,0.93743002,616.48,616.18,2.591]
[1743215251005,0.93743002,616.47,616.18,2.591]
[1743215251598,0.93743002,616.46,616.18,2.591]
[1743215252299,0.93743002,616.46,616.19,0.29188047]
[1743215252803,0.28233691,616.81,616.19,0.29188047]
[1743215252997,1.89604119,616.8,616.19,0.29188047]
[1743215253200,2.83387127,616.79,616.19,0.29188047]
[1743215253399,1.89604119,616.78,616.19,0.29188047]
[1743215253598,2.83387127,616.77,616.19,0.29188047]
[1743215253907,1.89604119,616.76,616.19,0.29188047]
[1743215254099,2.83387127,616.75,616.19,0.29188047]
[1743215254302,1.89604119,616.74,616.19,0.29188047]
[1743215254504,1.89604119,616.73,616.19,0.29188047]
[1743215254701,1.89604119,616.72,616.19,0.29188047]
[1743215254899,1.89604119,616.71,616.18,2.591]
[1743215255099,2.83387127,616.7,616.18,2.591]
[1743215255301,1.89604119,616.69,616.18,2.591]
[1743215255504,1.89604119,616.68,616.18,2.591]
[1743215255703,2.83387127,616.67,616.18,2.591]
[1743215255901,1.89604119,616.66,616.18,2.591]
[1743215256106,1.89604119,616.65,616.18,2.591]
[1743215256305,1.89604119,616.64,616.18,2.591]
[1743215256505,1.21070926,616.63,616.18,2.591]
[1743215256706,1.21070926,616.62,616.18,2.591]
[1743215256904,1.21070926,616.61,616.18,2.591]
[1743215257101,2.14853934,616.6,616.18,2.591]
[1743215257305,0.93783008,616.6,616.18,2.591]
[1743215257907,0.93783008,616.59,616.18,2.591]
[1743215258406,0.93783008,616.58,616.18,2.591]
[1743215258706,0.93783008,616.57,616.18,2.591]
[1743215259109,0.93783008,616.56,616.18,2.591]
[1743215259407,0.93783008,616.55,616.18,2.591]